Cogmind - Beta 16 @@@ ROGUE MODE // 2025.10.24 @ 23:22:56 Player: human Result: Destroyed by H-61 Shepherd with Heavy Assault Cannon Performance ------------- Evolutions (3) 1500 Regions Visited (10) 2000 Robots Destroyed (92) 460 Value Destroyed (3541) 3541 Prototype IDs (24) 480 Alien Tech Used (0) 0 Bonus (1381) 1381 TOTAL SCORE: 9362 Bonus ------- High Alert Combat Kills 279 Follower Combat Kills 102 Entered Garrisons 200 Used RIF Installer 500 Aligned with FarCom 300 Cogmind --------- Core Integrity 0/700 Matter 101/300 Energy 99/100 System Corruption 10% Temperature Cool (0) Movement Core (50) Location -7/Factory Parts ------- > --- POWER (1) -------- (None) > --- PROPULSION (3) --- (None) > --- UTILITY (6) ------ Improved Targeting Computer Core Analyzer Relay Coupler [NC] (17) > --- WEAPON (3) ------- (None) > --- INVENTORY (5) ---- Relay Coupler [Swarmer] (41) Relay Coupler [Hunter] (13) Relay Coupler [Heavy] (18) High-powered Tractor Beam Field Lobotomy Kit (5) Peak State ------------ > --- POWER ------------ Deuterium Engine > --- PROPULSION ------- Improved Treads Compact Wheel Armored Wheel > --- UTILITY ---------- High-capacity Storage Unit Improved Targeting Computer Core Analyzer Core Analyzer Relay Coupler [Grunt] Relay Coupler [Sentry] > --- WEAPON ----------- Minigun High-powered Shotgun Remote Datajack > --- INVENTORY -------- Deuterium Engine Improved Heat Sink High-capacity Matter Pod Relay Coupler [NC] Relay Coupler [Swarmer] Relay Coupler [Grunt] Relay Coupler [Sentry] Relay Coupler [Hunter] Relay Coupler [Heavy] Relay Coupler [Heavy] High-powered Tractor Beam Minigun Flak Cannon Advanced EMP Blaster Advanced EMP Blaster Missile Launcher Remote Datajack Field Lobotomy Kit Heavy Mace [Rating: 43] Favorites ----------- Power Deuterium Engine Engine Deuterium Engine Power Core Nuclear Core Propulsion Compact Wheel Treads Light Treads Wheel Compact Wheel Utility Advanced Targeting Computer Device Seismic Detector Storage High-capacity Storage Unit Processor Advanced Targeting Computer Hackware Relay Coupler [NC] Protection Reflective Plating Weapon Flak Cannon Energy Cannon Ion Cannon Ballistic Gun Minigun Ballistic Cannon Flak Cannon Launcher Missile Launcher Special Weapon Remote Datajack Impact Weapon Heavy Mace Build | -11 -10 -10 -9 -9 -9 -8 -8 -8 -8 -7 ------- Run | Yrd Mat Min Mat Min Exi Min Mat Sto Gar Fac Slots Evolved 6 | . . . 2 . . . 2 . . 2 Power . | . . . . . . . . . . . Propulsion 1 | . . . 1 . . . . . . . Utility 4 | . . . 1 . . . 2 . . 1 Weapon 1 | . . . . . . . . . . 1 Parts Attached 65 | 6 7 1 12 . . . 12 3 7 17 Power 6 | 1 2 1 . . . . 1 1 . . Engine 4 | 1 1 . . . . . 1 1 . . Core 2 | . 1 1 . . . . . . . . Reactor . | . . . . . . . . . . . Propulsion 18 | 2 2 . 4 . . . 5 . 2 3 Treads 2 | . . . 1 . . . . . . 1 Leg . | . . . . . . . . . . . Wheel 16 | 2 2 . 3 . . . 5 . 2 2 Hover . | . . . . . . . . . . . Flight . | . . . . . . . . . . . Utility 21 | 1 1 . 3 . . . 3 1 2 10 Device 3 | . 1 . . . . . 1 . . 1 Storage 3 | 1 . . 1 . . . 1 . . . Processor 5 | . . . 2 . . . 1 . . 2 Hackware 7 | . . . . . . . . . . 7 Protection 3 | . . . . . . . . 1 2 . Artifact . | . . . . . . . . . . . Weapon 20 | 2 2 . 5 . . . 3 1 3 4 Energy Gun . | . . . . . . . . . . . Energy Cannon 1 | . . . . . . . 1 . . . Ballistic Gun 7 | 2 1 . 1 . . . . . 2 1 Ballistic Cannon 5 | . . . 3 . . . 1 . 1 . Launcher 3 | . 1 . . . . . 1 1 . . Special Weapon 3 | . . . . . . . . . . 3 Impact Weapon 1 | . . . 1 . . . . . . . Slashing Weapon . | . . . . . . . . . . . Piercing Weapon . | . . . . . . . . . . . Special Melee Weapon . | . . . . . . . . . . . Unidentified Prototypes 1 | . . . . . . . . 1 . . Parts Lost 40 | . 5 . 3 . . . 5 . 6 21 Power 4 | . 2 . . . . . 1 . . 1 Propulsion 14 | . 2 . 2 . . . 2 . 2 6 Utility 11 | . . . . . . . 1 . 2 8 Weapon 11 | . 1 . 1 . . . 1 . 2 6 Highest Loss Streak 14 | . 2 . 1 . . . 3 . 3 14 To Critical Strikes . | . . . . . . . . . . . Average Backups 14 | 1 5 6 8 15 14 15 17 19 19 16 Power 1 | . . . 1 1 1 1 1 2 1 . Propulsion . | . . . . 1 1 1 1 3 1 . Utility 4 | . 2 4 2 3 2 3 2 2 6 10 Weapon 7 | . 1 1 5 10 9 9 10 11 9 4 Tool/Special . | . . . . . . . . . . . Unused Backups 29 | . 2 2 4 . 2 . 3 1 7 8 Power 3 | . . . . . . . 1 . 1 1 Propulsion 2 | . 2 . . . . . . . . . Utility 16 | . . 2 3 . 1 . . . 5 5 Weapon 7 | . . . 1 . 1 . 2 1 1 1 Tool/Special 1 | . . . . . . . . . . 1 Average Slot Usage (%) 93 | . 92 95 86 100 100 100 92 100 95 84 Engine 4 | . 10 . . . . . 5 9 9 5 Core 4 | . 2 14 11 11 11 11 3 . . . Treads 1 | . . . 6 . . . . . . 2 Wheel 23 | . 26 28 15 33 33 33 23 27 23 14 Device 7 | . 9 14 11 11 11 11 9 9 2 2 Storage 10 | . 14 14 11 11 11 11 14 12 9 5 Processor 13 | . . . 10 11 11 11 17 18 18 22 Protection 4 | . . . . . . . . 5 15 3 Ballistic Gun 5 | . 27 24 3 . . . . . . 11 Ballistic Cannon 10 | . . . 12 22 22 22 13 9 7 1 Impact Weapon 3 | . . . 5 . . . 2 4 7 3 Peak Build Rating 43 | 6 9 11 20 20 21 21 27 27 34 43 Average Rating 23 | 4 6 10 16 20 20 21 24 25 30 34 On Entrance 17 | . 6 8 11 20 20 21 21 26 26 34 Avg Prop Armor Cover (%) 10 | . . . 11 . . . . . . 9 Naked Turns . | . . . . . . . . . . . Heaviest Build 82 | 11 14 16 40 40 40 40 82 79 69 63 Greatest Support 48 | 26 26 20 48 48 48 48 48 30 36 36 Greatest Overweight (x) 3 | . . . 3 . . . 2 2 2 2 Average Overweight (x) . | . . . 1 . . . . 2 1 . Largest Inventory Capacity 20 | 8 8 8 15 15 15 15 20 20 20 20 Average Capacity 15 | 6 8 8 12 15 15 15 18 20 20 17 Most Carried 20 | 4 8 8 15 15 15 15 20 20 20 20 Average Carried 14 | 2 5 7 9 15 14 15 17 19 19 17 Final Capacity 20 | 8 8 8 15 15 15 15 20 20 20 5 Final Carried 20 | 4 6 8 15 15 15 15 20 20 20 5 Class Distribution -------------------- 92% | Mutant 4% | Bothacker-Gunner Dominant Class ---------------- Mutant | -10/Materials Mutant | -10/Mines Mutant | -9/Materials Mutant | -9/Mines Mutant | -9/Exiles Mutant | -8/Mines Mutant | -8/Materials Mutant | -8/Storage Mutant | -8/Garrison Mutant | -7/Factory Resources | -11 -10 -10 -9 -9 -9 -8 -8 -8 -8 -7 ----------- Run | Yrd Mat Min Mat Min Exi Min Mat Sto Gar Fac Matter Collected 2566 | 192 270 145 546 . . . 365 186 506 356 Remotely . | . . . . . . . . . . . Salvage Created 2330 | . 417 80 555 . . . 341 66 493 378 Parts 151 | . 32 3 28 . . . 34 6 33 15 Haulers Intercepted 2 | . . . 1 . . . 1 . . . Recyclers Shooed 5 | . . . 5 . . . . . . . Parts Field Recycled . | . . . . . . . . . . . Retrieved Matter . | . . . . . . . . . . . Parts Self-Destructed . | . . . . . . . . . . . Prevented . | . . . . . . . . . . . Parts Restored . | . . . . . . . . . . . Kills | -11 -10 -10 -9 -9 -9 -8 -8 -8 -8 -7 ------- Run | Yrd Mat Min Mat Min Exi Min Mat Sto Gar Fac Combat Hostiles Destroyed 76 | . 11 2 12 . . . 14 2 26 9 Guns 17 | . 6 2 . . . . . . 1 8 Cannons 39 | . . . 9 . . . 12 2 15 1 AOE 19 | . 5 . 2 . . . 2 . 10 . Classes Destroyed 13 | . 3 . 6 . . . 3 . 1 . Worker 8 | . 4 . 4 . . . . . . . Builder 1 | . . . . . . . 1 . . . Hauler 2 | . . . 1 . . . 1 . . . Recycler 2 | . . . 1 . . . . . . 1 Mechanic 1 | . . . 1 . . . . . . . Watcher 2 | . . . . . . . 2 . . . Swarmer 25 | . 3 . . . . . 8 . 11 3 Grunt 25 | . 8 2 4 . . . . . 7 4 Brawler 1 | . . . 1 . . . . . . . Duelist 2 | . . . 2 . . . . . . . Sentry 17 | . . . 5 . . . 5 2 5 . Hunter 1 | . . . . . . . 1 . . . Programmer 5 | . . . . . . . . . 3 2 Best Kill Streak 6 | . 5 2 4 . . . 6 2 4 3 Combat Bots Only 4 | . 3 2 4 . . . 4 2 4 3 Max Kills in Single Turn 3 | . 3 1 2 . . . 3 1 3 2 Gunslinging . | . . . . . . . . . . . Exploded 3 | . 3 . 2 . . . 1 . 3 . Melee . | . . . . . . . . . . . Uniques/NPCs Destroyed . | . . . . . . . . . . . Combat | -11 -10 -10 -9 -9 -9 -8 -8 -8 -8 -7 -------- Run | Yrd Mat Min Mat Min Exi Min Mat Sto Gar Fac Hostile Shots Fired 504 | . 52 14 55 . . . 67 15 98 203 Missed 165 | . 15 2 17 . . . 20 2 37 72 Hits 339 | . 37 12 38 . . . 47 13 61 131 Melee 6 | . . . . . . . . . . 6 Projectile 333 | . 37 12 38 . . . 47 13 61 125 Critical Strikes 14 | . . . 3 . . . . 1 3 7 Damage Taken 4901 | . 570 155 557 . . . 476 197 794 2152 Core 1258 | . 169 17 124 . . . 138 . 90 720 Absorbed by Shields 16 | . . . . . . . . . 2 14 Ignored by Resistances 28 | . . . . . . . . . 22 6 Core Remaining (%) 63 | 100 . 25 . . . 69 . . 58 . Volleys Fired 191 | . 40 9 20 . . . 22 5 48 47 Largest 3 | . 2 2 2 . . . 2 2 2 3 Hottest 87 | . 50 40 74 . . . 74 74 74 87 Shots Fired 330 | . 80 18 36 . . . 43 10 66 77 Gun 151 | . 78 18 . . . . . . 2 53 Cannon 145 | . . . 34 . . . 41 10 55 5 Launcher 15 | . 2 . 2 . . . 2 . 9 . Special 19 | . . . . . . . . . . 19 Kinetic 295 | . 78 18 34 . . . 40 10 57 58 Thermal 1 | . . . . . . . 1 . . . Explosive 15 | . 2 . 2 . . . 2 . 9 . Electromagnetic . | . . . . . . . . . . . Robot Hit Streak 21 | . 8 3 8 . . . 15 7 21 15 Robot Miss Streak 8 | . 4 1 4 . . . 8 3 3 5 Penetration Max . | . . . . . . . . . . . Secondary Targets 3 | . . 1 . . . . . . . 2 Max Gunslinging Chain 1 | . . 1 . . . . . . . 1 Shots Hit Robots 261 | . 45 12 47 . . . 33 8 55 61 Core Hits 231 | . 27 5 44 . . . 52 6 71 26 Critical Kills 2 | . . . 2 . . . . . . . Critical Parts Destroyed 3 | . 1 . 1 . . . . . . 1 Critical Strikes 5 | . 1 . 3 . . . . . . 1 Destroy 2 | . 1 . . . . . . . . 1 Smash 3 | . . . 3 . . . . . . . Melee Attacks 67 | . . . 18 . . . 6 1 32 10 Impact 67 | . . . 18 . . . 6 1 32 10 Slashing . | . . . . . . . . . . . Piercing . | . . . . . . . . . . . Sneak Attacks 7 | . . . 7 . . . . . . . Combat Hostiles . | . . . . . . . . . . . Follow-up Attacks . | . . . . . . . . . . . Damage Inflicted 6855 | . 1009 116 1653 . . . 977 147 1939 1014 Guns 1389 | . 482 116 . . . . . . 20 771 Cannons 2681 | . . . 612 . . . 622 147 1177 123 Explosions 1746 | . 527 . 181 . . . 355 . 683 . Melee 1033 | . . . 860 . . . . . 59 114 Ramming 6 | . . . . . . . . . . 6 Kinetic 4070 | . 482 116 612 . . . 622 147 1197 894 Thermal . | . . . . . . . . . . . Explosive 1746 | . 527 . 181 . . . 355 . 683 . Electromagnetic . | . . . . . . . . . . . Impact 1033 | . . . 860 . . . . . 59 114 Slashing . | . . . . . . . . . . . Piercing . | . . . . . . . . . . . Highest Corruption 10 | . . . . . . . . . . 10 Average Corruption 4 | . . . . . . . . . . 4 Corruption Purged . | . . . . . . . . . . . Corruption Blocked . | . . . . . . . . . . . Effects 9 | . . . . . . . . . . 9 Message Errors 3 | . . . . . . . . . . 3 Matter Fused 1 | . . . . . . . . . . 1 Data Loss (minor) 2 | . . . . . . . . . . 2 Data Loss (major) 2 | . . . . . . . . . . 2 Alerts 1 | . . . . . . . . . . 1 Overload Shots . | . . . . . . . . . . . Overflow Damage 308 | . 29 . 235 . . . 34 . 10 . Projectiles . | . . . . . . . . . . . Explosions 73 | . 29 . . . . . 34 . 10 . Melee 235 | . . . 235 . . . . . . . Knockbacks 45 | . . . 10 . . . 9 . 21 5 Impact 1 | . . . 1 . . . . . . . Kinetic 37 | . . . 9 . . . 8 . 16 4 Secondary 7 | . . . . . . . 1 . 5 1 Self-Inflicted Damage 134 | . 112 . 11 . . . . . 8 3 Shots 4 | . 2 . 1 . . . . . 1 . Rammed 1 | . . . . . . . . . . 1 Targets Rammed 1 | . . . . . . . . . . 1 Kicked . | . . . . . . . . . . . Crushed . | . . . . . . . . . . . Highest Temperature 87 | . 25 29 87 . . . 7 17 78 22 Average Temperature 24 | . 5 13 31 . . . 7 5 32 9 Received Heat Transfer 1641 | . 231 72 246 . . . 54 90 252 696 Siege Activations . | . . . . . . . . . . . Martial Activations . | . . . . . . . . . . . Shielding Activations . | . . . . . . . . . . . Robots Disrupted . | . . . . . . . . . . . Combat Hostiles . | . . . . . . . . . . . Robots Corrupted 4 | . . . 4 . . . . . . . Combat Hostiles 1 | . . . 1 . . . . . . . Parts Fried 3 | . . . 3 . . . . . . . Impact Corruptions 8 | . . . 8 . . . . . . . Robots Melted . | . . . . . . . . . . . Combat Hostiles . | . . . . . . . . . . . Parts Melted . | . . . . . . . . . . . Heat Transferred . | . . . . . . . . . . . Parts Sabotaged . | . . . . . . . . . . . Parts Stolen . | . . . . . . . . . . . Parts Stripped . | . . . . . . . . . . . Power Chain Reactions . | . . . . . . . . . . . Alert | -11 -10 -10 -9 -9 -9 -8 -8 -8 -8 -7 ------- Run | Yrd Mat Min Mat Min Exi Min Mat Sto Gar Fac Maximum Alert Level 3 | . 1 . . . . . . . 3 2 Low Security (%) 62 | 100 78 100 100 100 . 100 100 100 8 28 Level 1 7 | . 21 . . . . . . . 18 2 Level 2 22 | . . . . . . . . . 42 69 Level 3 7 | . . . . . . . . . 30 . Level 4 . | . . . . . . . . . . . Level 5 . | . . . . . . . . . . . High Security . | . . . . . . . . . . . Max Security . | . . . . . . . . . . . Peak Influence 977 | . 259 100 181 54 . . 197 70 977 512 Initial 512 | . . 90 7 54 . . . 36 32 512 Average 244 | . 85 64 94 9 . . 113 31 550 339 Influence Increases 2903 | . 426 50 399 . . . 472 97 1005 454 Destroy 0b10 Robot/C 1580 | . 220 40 240 . . . 280 40 520 240 Destroy 0b10 Robot/NC 85 | . 20 . 35 . . . 20 . 5 5 Destroy Leader 328 | . 60 10 82 . . . 86 20 20 50 Allied During Kill 5 | . . . . . . . . . . 5 Successful Hack 79 | . 12 . 4 . . . 42 7 . 14 Select Force Hacks 30 | . 30 . . . . . . . . . Disable Machine 60 | . 30 . . . . . . 15 15 . Anti-Garrison Action 300 | . . . . . . . . . 300 . Destroy Structure 226 | . 39 . 8 . . . 29 . 145 5 Lose Combat Pursuer 210 | . 15 . 30 . . . 15 15 . 135 Influence Decreases 2814 | . 193 263 278 141 . . 385 134 78 1342 Entered New Map 777 | . . 143 13 87 . . . 51 18 465 Time Decay 1353 | . 148 120 255 54 . . 345 83 . 348 Lost Part 349 | . 45 . 10 . . . 40 . 60 194 Lost Ally 60 | . . . . . . . . . . 60 Purge Threat 275 | . . . . . . . . . . 275 Squads Dispatched 17 | . 3 1 3 . . . 1 3 . 6 Investigation 3 | . 1 1 . . . . . 1 . . Extermination 2 | . . . . . . . . . . 2 Reinforcement 8 | . 2 . 2 . . . 1 1 . 2 Assault 3 | . . . 1 . . . . . . 2 Garrison 1 | . . . . . . . . 1 . . Intercept . | . . . . . . . . . . . Searches Triggered . | . . . . . . . . . . . Construction Impeded . | . . . . . . . . . . . Haulers Reinforced . | . . . . . . . . . . . Active Scanning Responses . | . . . . . . . . . . . Cargo Convoy Interrupts . | . . . . . . . . . . . Stealth | -11 -10 -10 -9 -9 -9 -8 -8 -8 -8 -7 --------- Run | Yrd Mat Min Mat Min Exi Min Mat Sto Gar Fac Distress Signals 5 | . 1 . 1 . . . 1 . . 2 Communications Jammed . | . . . . . . . . . . . Distress Signals . | . . . . . . . . . . . Times Spotted 150 | . 21 8 24 . . . 18 6 26 47 Peak Tracking Total 9 | . 5 3 5 . . . 7 3 4 9 Tactical Retreats 7 | . 1 . 1 . . . 1 1 . 3 Traps | -11 -10 -10 -9 -9 -9 -8 -8 -8 -8 -7 ------- Run | Yrd Mat Min Mat Min Exi Min Mat Sto Gar Fac Traps Triggered 10 | . . . . . . . 1 . 7 2 Indirectly . | . . . . . . . . . . . Trap Hack Attempts . | . . . . . . . . . . . Triggered . | . . . . . . . . . . . Disarmed . | . . . . . . . . . . . Reprogrammed . | . . . . . . . . . . . Reused . | . . . . . . . . . . . Traps Extracted . | . . . . . . . . . . . Installed 1 | . . . . 1 . . . . . . Triggered . | . . . . . . . . . . . Machines | -11 -10 -10 -9 -9 -9 -8 -8 -8 -8 -7 ---------- Run | Yrd Mat Min Mat Min Exi Min Mat Sto Gar Fac Machines Disabled 8 | . 2 . . . . . . 1 5 . Max in Single Turn 2 | . 2 . . . . . . 1 1 . Garrison Relay 4 | . . . . . . . . . 4 . Machines Repaired . | . . . . . . . . . . . Machines Dismantled . | . . . . . . . . . . . Machines Sabotaged . | . . . . . . . . . . . Overloaded Fab Kills . | . . . . . . . . . . . Hacking | -11 -10 -10 -9 -9 -9 -8 -8 -8 -8 -7 --------- Run | Yrd Mat Min Mat Min Exi Min Mat Sto Gar Fac Machines Accessed 28 | . 4 1 2 . 2 . 8 3 5 3 Terminals 19 | . 2 . 1 . . . 7 2 5 2 Fabricators 1 | . . . . . . . . . . 1 Repair Stations 1 | . 1 . . . . . . . . . Recycling Units 2 | . 1 . . . . . 1 . . . Scanalyzers 1 | . . . 1 . . . . . . . Garrison Access 1 | . . . . . . . . 1 . . Total Hacks 86 | . 9 1 7 . 24 . 26 5 7 7 Successful 49 | . 4 1 3 . 24 . 12 2 . 3 Failed 37 | . 5 . 4 . . . 14 3 7 4 Catastrophic 7 | . 1 . . . . . . 1 4 1 Database Lockouts . | . . . . . . . . . . . Manual 49 | . 9 . 6 . 1 . 26 1 . 6 Terminals 51 | . 7 . 6 . . . 23 2 7 6 Fabricators 1 | . . . . . . . . . . 1 Repair Stations 1 | . 1 . . . . . . . . . Recycling Units 4 | . 1 . . . . . 3 . . . Scanalyzers 1 | . . . 1 . . . . . . . Garrison Access 3 | . . . . . . . . 3 . . Terminal Hacks 29 | . . 1 . . 24 . 3 1 . . Record 23 | . . . . . 23 . . . . . Part Schematic 1 | . . . . . . . 1 . . . Open Door 2 | . . 1 . . . . . 1 . . Branch Access Points 1 | . . . . . . . 1 . . . Terminal Index 1 | . . . . . . . 1 . . . Proto ID Catalog 1 | . . . . . 1 . . . . . Fabricator Hacks 1 | . . . . . . . . . . 1 Network Status 1 | . . . . . . . . . . 1 Repair Station Hacks . | . . . . . . . . . . . Recycling Unit Hacks . | . . . . . . . . . . . Scanalyzer 1 | . . . 1 . . . . . . . Retrieve Study 1 | . . . 1 . . . . . . . Garrison Access Hacks 1 | . . . . . . . . 1 . . Unlock Access 1 | . . . . . . . . 1 . . Unauthorized Hacks 17 | . 4 . 2 . . . 9 . . 2 Terminals 13 | . 2 . 2 . . . 7 . . 2 Botnet 6 | . 1 . 1 . . . 2 . . 2 Skim 7 | . 1 . 1 . . . 5 . . . Fabricators . | . . . . . . . . . . . Repair Stations 1 | . 1 . . . . . . . . . Mechanics 1 | . 1 . . . . . . . . . Recycling Units 3 | . 1 . . . . . 2 . . . Reject 1 | . . . . . . . 1 . . . Recyclers 1 | . . . . . . . 1 . . . Tunnel 1 | . 1 . . . . . . . . . Scanalyzers . | . . . . . . . . . . . Garrison Access . | . . . . . . . . . . . Data Cores Recovered . | . . . . . . . . . . . Used . | . . . . . . . . . . . Hacking Detections 19 | . 3 . 1 . . . 6 2 5 2 Full Trace Events 2 | . . . . . . . 1 1 . . Feedback Events . | . . . . . . . . . . . Feedback Blocked . | . . . . . . . . . . . Robot Schematics Acquired . | . . . . . . . . . . . Robots Built . | . . . . . . . . . . . Authchips . | . . . . . . . . . . . Time . | . . . . . . . . . . . Total Robot Build Rating . | . . . . . . . . . . . Part Schematics Acquired 1 | . . . . . . . 1 . . . Parts Built . | . . . . . . . . . . . Authchips . | . . . . . . . . . . . Time . | . . . . . . . . . . . Total Part Build Rating . | . . . . . . . . . . . Part Studies Acquired 1 | . . . 1 . . . . . . . Parts Repaired . | . . . . . . . . . . . Time . | . . . . . . . . . . . Parts Recycled . | . . . . . . . . . . . Recycled Matter . | . . . . . . . . . . . Retrieved Matter . | . . . . . . . . . . . Retrieved Components . | . . . . . . . . . . . Parts Scanalyzed . | . . . . . . . . . . . Part Schematics Acquired . | . . . . . . . . . . . Parts Damaged . | . . . . . . . . . . . Bothacking | -11 -10 -10 -9 -9 -9 -8 -8 -8 -8 -7 ------------ Run | Yrd Mat Min Mat Min Exi Min Mat Sto Gar Fac Used RIF Installer 1 | . . . . . . . . . 1 . Robots Hacked 11 | . . . . . . . . . . 11 Non-combat 5 | . . . . . . . . . . 5 Combat 6 | . . . . . . . . . . 6 Robot Hacks Applied 14 | . . . . . . . . . . 14 purge_threat 2 | . . . . . . . . . . 2 reprogram_traps 1 | . . . . . . . . . . 1 map_route 1 | . . . . . . . . . . 1 find_garrison 1 | . . . . . . . . . . 1 amplify_resonance 3 | . . . . . . . . . . 3 overwrite_iff 1 | . . . . . . . . . . 1 streamctrl_high 1 | . . . . . . . . . . 1 formatsys_low 2 | . . . . . . . . . . 2 formatsys_high 2 | . . . . . . . . . . 2 Relay Couplers Released 14 | . . . . . . . . . 14 . Machine Destruction 14 | . . . . . . . . . 14 . Attached 7 | . . . . . . . . . . 7 Fabnet Peak Effective % . | . . . . . . . . . . . Robots Rewired . | . . . . . . . . . . . Allies Hacked . | . . . . . . . . . . . Hacks Repelled . | . . . . . . . . . . . Allies | -11 -10 -10 -9 -9 -9 -8 -8 -8 -8 -7 -------- Run | Yrd Mat Min Mat Min Exi Min Mat Sto Gar Fac Total Allies 8 | . . . . 2 . . . . . 6 Largest Group 2 | . . . . 2 2 . . . . 2 Highest-Rated Group 45 | . . . . 45 45 . . . . 32 Highest-Rated Ally 32 | . . . . 31 31 . . . . 32 Total Orders . | . . . . . . . . . . . Ally Attacks 12 | . . . . . . . . . . 12 Total Damage 380 | . . . . . . . . . . 380 Kills 3 | . . . . . . . . . . 3 Allies Corrupted . | . . . . . . . . . . . Allies Melted 1 | . . . . . . . . . . 1 Intel | -11 -10 -10 -9 -9 -9 -8 -8 -8 -8 -7 ------- Run | Yrd Mat Min Mat Min Exi Min Mat Sto Gar Fac Active Infowar (turns) 2428 | . 324 251 644 368 715 20 106 . . . Seismic 2428 | . 324 251 644 368 715 20 106 . . . Robot Analysis Total . | . . . . . . . . . . . Derelict Logs Recovered 3 | . . . . 3 . . . . . . Drone Launches . | . . . . . . . . . . . Drone Recoveries . | . . . . . . . . . . . Exploration | -11 -10 -10 -9 -9 -9 -8 -8 -8 -8 -7 ------------- Run | Yrd Mat Min Mat Min Exi Min Mat Sto Gar Fac Turns Passed 5788 | 61 481 251 644 368 715 20 923 180 1336 809 Spaces Moved 4518 | 55 415 268 489 353 658 21 526 144 974 615 Core 216 | 2 . . . . . . . . . 214 Treads 11 | . . . 11 . . . . . . . Legs . | . . . . . . . . . . . Wheels 4291 | 53 415 268 478 353 658 21 526 144 974 401 Hover . | . . . . . . . . . . . Flight . | . . . . . . . . . . . Fastest Speed 50 | 50 80 80 70 100 100 100 100 100 91 50 Average Speed 98 | 87 84 80 99 100 100 100 111 100 105 92 Slowest Speed 240 | 90 90 80 240 100 100 100 130 100 120 125 Overloaded Moves . | . . . . . . . . . . . Propulsion Burnouts . | . . . . . . . . . . . Robots Hopped . | . . . . . . . . . . . Potential Cave-ins . | . . . . . . . . . . . Cave-ins Triggered . | . . . . . . . . . . . Exploration Rate (%) 46 | 4 71 50 36 63 90 13 48 23 90 20 Regions Visited 10 Branch Regions 5 Pre-discovered Areas 7 | . 1 . . 2 1 . 3 . . . Known Exits Taken 3 | . . . . . . 1 1 1 . . Unknown Exits Taken 6 | 1 1 1 1 1 1 . . . . . Scrap Searched 1 | . . . . 1 . . . . . . Spaces Dug 19 | . . . . . . . 5 . 10 4 Terrain Destroyed 171 | . 41 . 8 . . . 28 . 90 4 Melee 18 | . . . . . . . 4 . 10 4 Projectile 1 | . . . . . . . 1 . . . AOE 152 | . 41 . 8 . . . 23 . 80 . Terrain Rammed . | . . . . . . . . . . . Walls Destroyed . | . . . . . . . . . . . Machines Disabled . | . . . . . . . . . . . Actions | -11 -10 -10 -9 -9 -9 -8 -8 -8 -8 -7 --------- Run | Yrd Mat Min Mat Min Exi Min Mat Sto Gar Fac Total 5417 | 64 472 288 577 368 716 20 804 168 1162 778 Wait 359 | . 1 3 14 15 51 . 212 4 6 53 Move 4509 | 54 414 267 488 352 657 20 525 144 973 615 Hop . | . . . . . . . . . . . Pick Up 72 | 4 8 5 14 . 4 . 13 2 17 5 Fast Attach 31 | 6 1 . 6 . . . 7 2 3 6 Attach 25 | . 4 1 1 . . . 4 1 4 10 Detach . | . . . . . . . . . . . Swap 38 | . 2 1 8 . . . 8 4 9 6 Drop 47 | . 2 2 8 . 4 . 7 5 14 5 Fire 191 | . 40 9 20 . . . 22 5 48 47 Melee 67 | . . . 18 . . . 6 1 32 10 Ram 1 | . . . . . . . . . . 1 Kick . | . . . . . . . . . . . Crush . | . . . . . . . . . . . Escape Stasis 72 | . . . . . . . . . 56 16 Rewire 4 | . . . . . . . . . . 4 Trap 1 | . . . . 1 . . . . . . Miscellaneous . | . . . . . . . . . . . Route ------- -11/Scrapyard -10/Materials (discovered 2 exits: *Mat / *Min) -10/Mines (discovered 3 exits: *Mat x2 / [*Sub]) -9/Materials (discovered 2 exits: *Mat / [*Min]) -9/Mines (discovered 2 exits: *Mat / *Exi) -9/Exiles -8/Mines -8/Materials (discovered 4 exits: Fac x3 / *Sto) -8/Storage -8/Garrison (discovered 3 exits: *Fac x3) -7/Factory (discovered 1 exit: [*Low]) History --------- Turn | Location | Event 29 | -11/Scrapyard | Discovered new exit (range 16) 62 | -11/Scrapyard | Entered Materials 179 | -10/Materials | Discovered new exit (range 11) 324 | -10/Materials | Build established: Mutant 379 | -10/Materials | Discovered new exit (range 11) 440 | -10/Materials | Core integrity fell below 50% 543 | -10/Materials | Entered Mines 601 | -10/Mines | Met a Derelict shopkeep closing up shop 654 | -10/Mines | Met a Derelict testing a Signal Generator 657 | -10/Mines | Found Signal Generator 662 | -10/Mines | Discovered new exit (range 8) 778 | -10/Mines | Discovered new exit (range 6) 781 | -10/Mines | Discovered new exit (range 7) 794 | -10/Mines | Entered Materials 794 | -9/Materials | Evolved 2 slots: Propulsion x1, Utility x1 947 | -9/Materials | Discovered new exit (range 14) 987 | -9/Materials | Discovered new exit (range 10) 1438 | -9/Materials | Entered Mines 1439 | -9/Mines | Assembled infested the area 1537 | -9/Mines | Found a hidden stash of uninstalled traps 1656 | -9/Mines | Learned location of Storage (-8) 1661 | -9/Mines | Learned location of 1 exit from Lower Caves 1670 | -9/Mines | Found a damaged Exp. Sensor Array with a note attached 1693 | -9/Mines | Identified exit to Materials 1785 | -9/Mines | Discovered new exit (range 5) 1806 | -9/Mines | Entered Exiles 1806 | -9/Exiles | Accompanied by 2 allies 1831 | -9/Exiles | Met 8R-AWN 1836 | -9/Exiles | Led the pair of lost Derelicts to a safe place 1847 | -9/Exiles | Met EX-HEX 1879 | -9/Exiles | Met EX-BIN 1894 | -9/Exiles | Aligned with FarCom system 1895 | -9/Exiles | Given EX-Vault access code 1918 | -9/Exiles | Opened EX-Vault 1926 | -9/Exiles | Found Field Lobotomy Kit 1948 | -9/Exiles | Warned to stay clear of 0b10 Research branches 1979 | -9/Exiles | Met EX-DEC 2014 | -9/Exiles | Visited The Gauntlet 2211 | -9/Exiles | Learned location of Zion (-7) 2512 | -9/Exiles | Discovered new exit (range 10) 2521 | -9/Exiles | Left Exiles lab with Field Lobotomy Kit 2521 | -9/Exiles | Entered Mines 2523 | -8/Mines | Discovered exit to Materials (range 9) 2541 | -8/Mines | Entered Materials 2541 | -8/Materials | Evolved 2 slots: Utility x2 2653 | -8/Materials | Discovered new exit (range 16) 2699 | -8/Materials | Lost 3 parts (1p1u1w) 2828 | -8/Materials | Identified exit to Storage 3245 | -8/Materials | Learned Factory terminal intel 3291 | -8/Materials | Learned location of Extension (-6) 3348 | -8/Materials | Learned Storage trap positions 3359 | -8/Materials | Learned location of 1 exit from Recycling 3360 | -8/Materials | Learned Factory stockpile data 3362 | -8/Materials | Learned Storage garrison access intel 3370 | -8/Materials | Learned location of 1 exit from Recycling 3389 | -8/Materials | Identified exit to Factory 3464 | -8/Materials | Entered Storage 3465 | -8/Storage | Loaded intel: 15 trap records 3466 | -8/Storage | Loaded intel: 1 garrison access location 3570 | -8/Storage | Garrison activated, responded to threat 3644 | -8/Storage | Identified exit to Garrison 3644 | -8/Storage | Entered Garrison 3700 | -8/Garrison | Triggered checkpoint 3729 | -8/Garrison | Garrison Relay disabled 3831 | -8/Garrison | Triggered checkpoint 3992 | -8/Garrison | Triggered checkpoint 4010 | -8/Garrison | Discovered exit to Factory (range 15) 4030 | -8/Garrison | Lost 3 parts (1n2u) 4136 | -8/Garrison | Triggered checkpoint 4157 | -8/Garrison | Garrison Relay disabled 4306 | -8/Garrison | Triggered checkpoint 4391 | -8/Garrison | Discovered exit to Factory (range 9) 4408 | -8/Garrison | Triggered checkpoint 4467 | -8/Garrison | Garrison Relay disabled 4564 | -8/Garrison | Triggered checkpoint 4638 | -8/Garrison | Installed Relay Interface Framework 4648 | -8/Garrison | Triggered checkpoint 4663 | -8/Garrison | Garrison Relay disabled 4743 | -8/Garrison | Discovered exit to Factory (range 12) 4980 | -8/Garrison | Entered Factory 4980 | -7/Factory | Evolved 2 slots: Utility x1, Weapon x1 4982 | -7/Factory | Loaded intel: 25 terminal locations 5304 | -7/Factory | Lost 3 parts (2n1u) 5380 | -7/Factory | First assault squad dispatched 5414 | -7/Factory | Discovered new exit (range 9) 5631 | -7/Factory | System corruption reached 10% 5639 | -7/Factory | Core integrity fell below 50% 5677 | -7/Factory | Lost 14 parts (1p3n5u5w) 5727 | -7/Factory | Core integrity fell below 20% 5789 | -7/Factory | Destroyed by H-61 Shepherd with Heavy Assault Cannon Last Messages --------------- Rerouting network defenses. Erasing system data. Installing primary routines, ETC: 6. 05759_ Reactivated Guardian 4b. 05760_ MJ3OU%4N&EM2>G1>9VWK>GVQ7FFL7RVU8H>streamctrl_high Hijacking control node. 05779_ DE#JV#=F>P6:6P%D8QOQOQUIYYSI9SGN